bitfinex/quotes_ETHUSD_20230117
["timestamp","ask_amount","ask_price","bid_price","bid_amount"]
[1673962927746,33.47866761,1571.0,1570.9,0.01069204]
[1673962928328,33.95643725,1571.0,1570.9,0.01069204]
[1673962928999,35.38299739,1571.0,1570.9,0.01069204]
[1673962929224,33.47830969,1571.0,1570.9,0.01069204]
[1673962931482,34.42922235,1571.0,1570.9,0.01069204]
[1673962931831,33.47830969,1571.0,1570.9,0.01069204]
[1673962932844,34.42920309,1571.0,1570.9,0.01069204]
[1673962933370,33.47830969,1571.0,1570.9,0.01069204]
[1673962937072,34.42933677,1571.0,1570.9,0.01069204]
[1673962937427,33.47830969,1571.0,1570.9,0.01069204]
[1673962938904,33.47830969,1571.0,1570.9,0.00865663]
[1673962940761,35.38299739,1571.0,1570.9,0.00865663]
[1673962940972,33.47830969,1571.0,1570.9,0.00865663]
[1673962941191,34.90539739,1571.0,1570.9,0.00865663]
[1673962941888,34.90539739,1571.0,1570.8,0.04881323]
[1673962941889,1.0,1570.9,1570.8,0.04881323]
[1673962942105,35.70499787,1570.9,1570.8,0.04881323]
[1673962942350,38.28422891,1570.9,1570.8,0.04881323]
[1673962942570,35.90661511,1570.9,1570.8,0.04881323]
[1673962942789,38.28422891,1570.9,1570.8,0.04881323]
[1673962943182,35.90661511,1570.9,1570.8,0.04881323]
[1673962943403,38.28422891,1570.9,1570.8,0.04881323]
[1673962943946,37.41715894,1570.9,1570.8,0.04881323]
[1673962944845,35.51426341,1570.9,1570.8,0.04881323]
[1673962948589,33.06926341,1570.9,1570.8,0.04881323]
[1673962948805,34.02494317,1570.9,1570.8,0.04881323]
[1673962948991,32.59642536,1570.9,1570.8,0.04881323]
[1673962949437,32.11872536,1570.9,1570.8,0.04881323]
[1673962950400,34.49633916,1570.9,1570.8,0.04881323]
[1673962950591,32.59156341,1570.9,1570.8,0.04881323]
[1673962952445,32.82156341,1570.9,1570.8,0.04881323]
[1673962952661,30.44394961,1570.9,1570.8,0.04881323]
[1673962953760,33.29708617,1570.9,1570.8,0.04881323]
[1673962953975,31.66294961,1570.9,1570.8,0.04881323]
[1673962954925,34.51608617,1570.9,1570.8,0.04881323]
[1673962955496,31.66294961,1570.9,1570.8,0.04881323]
[1673962955704,34.51608617,1570.9,1570.8,0.04881323]
[1673962956649,34.51395722,1570.9,1570.8,0.04881323]
[1673962956856,34.51395722,1570.9,1570.7,0.04520981]
[1673962956857,33.81432035,1570.9,1570.7,0.04520981]
[1673962957072,7.8431611,1570.8,1570.7,0.04520981]
[1673962957328,27.0077011,1570.8,1570.7,0.04520981]
[1673962957492,25.57742393,1570.8,1570.7,0.04520981]
[1673962957702,27.00770675,1570.8,1570.7,0.04520981]
[1673962957967,28.80763247,1570.8,1570.7,0.04520981]
[1673962958331,11.35525354,1570.8,1570.7,0.04520981]
[1673962958542,8.86249661,1570.8,1570.7,0.04520981]
[1673962958769,27.96103661,1570.8,1570.7,0.04520981]
[1673962959333,29.60719768,1570.8,1570.7,0.04520981]
[1673962959648,25.10081854,1570.8,1570.7,0.04520981]
[1673962959820,26.74697961,1570.8,1570.7,0.04520981]
[1673962962170,28.65414309,1570.8,1570.7,0.04520981]
[1673962962383,32.76306888,1570.8,1570.7,0.04520981]
[1673962963603,31.33262378,1570.8,1570.7,0.04520981]
[1673962964287,32.76321428,1570.8,1570.7,0.04520981]
[1673962964441,15.92197351,1570.8,1570.7,2.32520981]
[1673962964654,6.95614908,1570.8,1570.7,0.04520981]
[1673962965016,6.95615419,1570.8,1570.7,0.04520981]
[1673962965234,6.00246896,1570.8,1570.7,0.04520981]
[1673962966113,12.36864896,1570.8,1570.7,0.04520981]
[1673962966569,14.27581244,1570.8,1570.7,0.04520981]
[1673962966904,12.36864896,1570.8,1570.7,0.04520981]
[1673962967538,14.27581244,1570.8,1570.7,0.04520981]
[1673962968168,28.51666713,1570.8,1570.7,0.04520981]
[1673962968482,28.99436713,1570.8,1570.7,0.04520981]
[1673962968644,30.1628282,1570.8,1570.7,0.04520981]
[1673962969631,32.54632789,1570.8,1570.7,0.04520981]
[1673962969871,30.63916441,1570.8,1570.7,0.04520981]
[1673962970465,32.08016441,1570.8,1570.7,0.04520981]
[1673962970648,31.85016441,1570.8,1570.7,0.04520981]
[1673962970871,32.32786441,1570.8,1570.7,0.04520981]
[1673962972484,29.94436472,1570.8,1570.7,0.04520981]
[1673962972792,29.94436472,1570.8,1570.6,0.04687321]
[1673962973000,30.89229313,1570.7,1570.6,0.04687321]
[1673962973320,32.6044542,1570.7,1570.6,0.04687321]
[1673962975369,30.69677277,1570.7,1570.6,0.04687321]
[1673962976464,30.92677277,1570.7,1570.6,0.04687321]
[1673962977273,30.69677277,1570.7,1570.6,0.04687321]
[1673962979957,32.38430754,1570.7,1570.6,0.04687321]
[1673962980259,32.61430754,1570.7,1570.6,0.04687321]
[1673962980612,3.30743075,1570.6,1570.3,0.11870585]
[1673962980868,7.93065636,1570.4,1570.3,0.11870585]
[1673962981101,28.48926573,1570.4,1570.3,0.11870585]
[1673962981246,28.71926573,1570.4,1570.3,0.11870585]
[1673962981458,27.7064268,1570.4,1570.3,0.11870585]
[1673962981670,29.68864741,1570.4,1570.3,0.11870585]
[1673962981907,31.33480848,1570.4,1570.3,0.11870585]
[1673962982570,29.21004071,1570.4,1570.3,0.11870585]
[1673962982777,30.85620178,1570.4,1570.3,0.11870585]
[1673962983742,33.24123407,1570.4,1570.3,0.11870585]
[1673962983927,31.33480848,1570.4,1570.3,0.11870585]
[1673962984511,31.5942121,1570.4,1570.3,0.11870585]
[1673962984829,33.24037317,1570.4,1570.3,0.11870585]
[1673962985938,30.85534088,1570.4,1570.3,0.11870585]
[1673962986329,30.37891094,1570.4,1570.3,0.11870585]
[1673962988196,31.33132422,1570.4,1570.3,0.11870585]
[1673962988629,29.90218947,1570.4,1570.3,0.11870585]
[1673962990125,31.33132422,1570.4,1570.3,0.11870585]
[1673962990300,29.90218947,1570.4,1570.3,0.11870585]
[1673962991346,13.17880575,1570.4,1570.3,0.11870585]
[1673962991567,9.55042407,1570.4,1570.3,0.11870585]
[1673962992422,3.18262407,1570.4,1570.3,0.11870585]
[1673962992595,3.11662407,1570.4,1570.3,0.11870585]
[1673962993872,0.066,1570.5,1570.3,6.48690585]
[1673962994033,0.002,1570.5,1570.3,19.28930585]
[1673962994249,0.95241328,1570.8,1570.4,2.98780588]
[1673962994404,2.40838429,1570.8,1570.7,2.98780588]
[1673962994610,0.95241328,1570.8,1570.7,2.98780588]
[1673962994859,2.38154803,1570.9,1570.7,2.98780588]
[1673962995097,2.38154803,1570.9,1570.7,4.20680588]
[1673962995289,5.4981721,1570.9,1570.7,4.20680588]
[1673962995505,2.40819091,1570.8,1570.7,2.98780588]
[1673962995876,5.52481498,1570.8,1570.7,2.98780588]
[1673962996087,6.58336642,1570.8,1570.7,2.98780588]
[1673962996838,8.01250117,1570.8,1570.7,2.98780588]
[1673962997800,7.01994973,1570.8,1570.7,2.98780588]
[1673962998610,5.59081498,1570.8,1570.7,2.98780588]
[1673962999559,7.01994973,1570.8,1570.7,2.98780588]
[1673962999763,7.01925524,1570.8,1570.7,2.98780588]
[1673962999970,6.06753645,1570.8,1570.7,2.98780588]
[1673963000502,14.50420556,1570.8,1570.7,2.98780588]
[1673963001526,20.87038556,1570.8,1570.7,2.98780588]
[1673963001664,27.7129955,1570.8,1570.6,11.31036074]
[1673963001874,27.7129955,1570.8,1570.6,14.36416662]
[1673963001875,6.00023977,1570.7,1570.6,14.36416662]
[1673963002149,18.79939977,1570.7,1570.6,3.05380588]
[1673963002455,21.76133313,1570.7,1570.6,2.98780588]
[1673963003472,28.12791313,1570.7,1570.6,2.98780588]
[1673963007084,28.12791313,1570.7,1570.5,0.066]
[1673963007085,28.60563975,1570.7,1570.5,3.05380588]
[1673963007248,19.68654061,1570.6,1570.5,2.98780588]
[1673963007458,22.61310459,1570.6,1570.5,2.98780588]
[1673963008856,31.0647097,1570.6,1570.3,3.17251173]
[1673963009070,31.0647097,1570.6,1570.3,3.10651173]
[1673963009071,0.95210469,1570.4,1570.3,3.10651173]
[1673963009391,6.97752773,1570.4,1570.3,3.10651173]
[1673963009710,7.04352773,1570.4,1570.3,3.10651173]
[1673963011342,3.18262407,1570.4,1570.3,3.10651173]
[1673963011704,3.11662407,1570.4,1570.3,3.10651173]
[1673963013807,9.48442407,1570.4,1570.3,3.10651173]
[1673963013966,9.55042407,1570.4,1570.3,3.10651173]
[1673963014185,22.28602407,1570.4,1570.3,3.10651173]
[1673963014390,25.38940765,1570.4,1570.3,3.10651173]
[1673963016324,29.18070332,1570.4,1570.3,3.10651173]
[1673963016569,27.75254629,1570.4,1570.3,3.10651173]
[1673963019235,27.75254629,1570.4,1570.3,3.10651173]
[1673963022732,29.91094228,1570.4,1570.3,3.10651173]
[1673963022897,28.22859863,1570.4,1570.3,3.10651173]
[1673963023101,29.91094228,1570.4,1570.3,3.10651173]
[1673963023310,7.22772047,1570.4,1570.3,3.10651173]
[1673963023522,3.18262407,1570.4,1570.3,3.10651173]
[1673963023731,3.11662407,1570.4,1570.3,3.10651173]
[1673963026188,1.0177188,1570.5,1570.3,10.47471173]
[1673963026519,0.9517188,1570.6,1570.4,2.28292908]
[1673963026677,5.47994951,1570.6,1570.4,2.28292908]
[1673963026892,4.13434287,1570.6,1570.5,2.98780588]
[1673963027138,5.47991743,1570.6,1570.5,2.98780588]
[1673963027372,5.54591743,1570.6,1570.5,2.98780588]
[1673963028250,12.38934566,1570.6,1570.5,2.98780588]
[1673963028500,22.96510424,1570.6,1570.5,2.98780588]
[1673963028718,21.53694721,1570.6,1570.5,2.98780588]
[1673963029772,27.90393721,1570.6,1570.5,2.98780588]
[1673963031296,27.90393721,1570.6,1570.4,0.06892908]
[1673963031509,7.39103092,1570.5,1570.4,0.00292908]
[1673963031818,29.88149278,1570.5,1570.4,0.00292908]
[1673963032034,31.5298526,1570.5,1570.4,0.00292908]
[1673963033992,33.4343732,1570.5,1570.4,0.00292908]
[1673963034511,31.5298526,1570.5,1570.4,0.00292908]
[1673963035088,33.43464633,1570.5,1570.4,0.00292908]
[1673963035756,18.31483404,1570.5,1570.4,0.00292908]
[1673963035969,16.66647422,1570.5,1570.4,0.00292908]
[1673963036357,10.29908422,1570.5,1570.4,0.00292908]
[1673963036570,17.14671278,1570.5,1570.4,0.00292908]
[1673963037186,23.51410278,1570.5,1570.4,0.00292908]
[1673963037428,25.41926203,1570.5,1570.4,0.00292908]
[1673963037624,23.51410278,1570.5,1570.4,0.00292908]
[1673963039428,25.41954627,1570.5,1570.4,0.00292908]
[1673963039850,27.06790609,1570.5,1570.4,0.00292908]
[1673963040384,27.06790609,1570.5,1570.4,2.9870883]
[1673963040729,25.1624626,1570.5,1570.4,2.9870883]
[1673963040915,27.06851984,1570.5,1570.4,2.9870883]
[1673963042615,24.68348755,1570.5,1570.4,2.9870883]
[1673963042835,23.03512773,1570.5,1570.4,2.9870883]
[1673963043507,23.98704282,1570.5,1570.4,2.9870883]
[1673963044576,22.55732773,1570.5,1570.4,2.9870883]
[1673963044809,23.9871076,1570.5,1570.4,2.9870883]
[1673963045143,22.55732773,1570.5,1570.4,2.9870883]
[1673963045475,11.25231083,1570.5,1570.4,2.98351112]
[1673963045815,9.82254773,1570.5,1570.4,2.98351112]
[1673963050256,11.252654,1570.5,1570.4,2.98351112]
[1673963050536,9.34659676,1570.5,1570.4,2.98351112]
[1673963050895,6.0243049,1570.5,1570.4,2.98351112]
[1673963051721,7.93036214,1570.5,1570.4,2.98351112]
[1673963051939,6.0243049,1570.5,1570.4,2.98351112]
[1673963052570,7.93036214,1570.5,1570.4,2.98351112]
[1673963053045,6.0243049,1570.5,1570.4,2.98351112]
[1673963057521,6.97741552,1570.5,1570.4,2.98351112]
[1673963058392,6.0243049,1570.5,1570.4,2.98351112]
[1673963061937,8.48604788,1570.5,1570.4,2.98351112]
[1673963064113,10.39210512,1570.5,1570.4,2.98351112]
[1673963064330,23.12688512,1570.5,1570.4,2.98351112]
[1673963064895,28.54196885,1570.5,1570.4,2.98351112]
[1673963065057,28.06416885,1570.5,1570.4,2.98351112]
[1673963065738,30.44920114,1570.5,1570.4,2.98351112]
[1673963065924,7.92974231,1570.5,1570.4,2.98351112]
[1673963066149,3.86010173,1570.5,1570.4,2.98351112]
[1673963066474,3.79410173,1570.5,1570.4,9.35131112]
[1673963066649,2.36461529,1570.5,1570.4,9.41731112]
[1673963066856,3.79410173,1570.5,1570.4,9.41731112]
[1673963067109,2.36461529,1570.5,1570.4,9.41731112]
[1673963068741,3.40154368,1570.6,1570.4,23.76842257]
[1673963068742,1.01904073,1570.6,1570.4,23.76842257]
[1673963068947,1.01904073,1570.6,1570.5,1.452]
[1673963068948,0.95304073,1570.6,1570.5,1.452]
[1673963069178,0.95304073,1570.6,1570.5,21.55417]
[1673963069466,2.38252717,1570.7,1570.5,20.62017]
[1673963069627,3.79482791,1570.7,1570.5,20.62017]
[1673963069842,2.38252717,1570.7,1570.6,2.98351112]
[1673963070013,3.40154368,1570.8,1570.6,2.98351112]
[1673963070227,2.36507596,1570.7,1570.6,2.98351112]
[1673963070456,2.38227368,1570.7,1570.6,2.98351112]
[1673963070627,3.7945624,1570.7,1570.6,2.98351112]
[1673963071522,2.36507596,1570.7,1570.6,2.98351112]
[1673963072327,2.36507596,1570.7,1570.6,9.35050112]
[1673963072564,3.7945624,1570.7,1570.6,3.04951112]
[1673963072885,2.84177516,1570.7,1570.6,2.98351112]
[1673963073045,4.5964084,1570.7,1570.6,2.98351112]
[1673963073257,7.71303247,1570.7,1570.6,2.98351112]
[1673963073579,9.68508971,1570.7,1570.6,2.98351112]
[1673963073812,7.77903247,1570.7,1570.6,2.98351112]
[1673963074017,9.68508971,1570.7,1570.6,2.98351112]
[1673963074332,16.05166971,1570.7,1570.6,2.98351112]
[1673963074936,28.78482971,1570.7,1570.6,2.98351112]
[1673963075357,16.05166971,1570.7,1570.6,2.98351112]
[1673963076002,14.62218327,1570.7,1570.6,2.98351112]
[1673963076211,20.98876327,1570.7,1570.6,2.98351112]
[1673963076458,27.35534327,1570.7,1570.6,2.98351112]
[1673963076828,27.83431832,1570.7,1570.6,2.98351112]
[1673963077051,28.47106005,1570.7,1570.6,2.98351112]
[1673963078363,28.94876005,1570.7,1570.6,2.98351112]
[1673963141193,19.7367943,1570.1,1570.0,1.52464475]
[1673963141359,20.68974752,1570.1,1570.0,1.52464475]
[1673963141785,19.08153777,1570.1,1570.0,1.52464475]
[1673963142000,3.96990959,1570.1,1570.0,1.52464475]
[1673963142325,3.96990959,1570.1,1570.0,2.52464475]
[1673963142326,3.90390959,1570.1,1570.0,2.52464475]
[1673963143490,3.90390959,1570.1,1570.0,2.67945105]
[1673963143854,3.90390959,1570.1,1570.0,2.52464475]
[1673963144062,3.90390959,1570.1,1570.0,1.52464475]
[1673963146193,3.90390959,1570.1,1570.0,2.67945998]
[1673963146368,3.90390959,1570.1,1570.0,1.67945998]
[1673963146585,3.90390959,1570.1,1570.0,2.67945998]
[1673963146932,3.90390959,1570.1,1570.0,1.67945998]
[1673963147123,3.90390959,1570.1,1570.0,2.67945998]
[1673963147328,3.90390959,1570.1,1570.0,1.67945998]
[1673963148153,0.78728552,1570.1,1570.0,21.73310203]
[1673963148413,0.57040764,1570.3,1570.0,30.52838662]
[1673963148623,0.57040764,1570.3,1570.1,6.52670753]
[1673963148624,9.0,1570.2,1570.1,6.52670753]
[1673963148801,9.066,1570.2,1570.1,19.37062508]
[1673963149007,9.066,1570.2,1570.1,20.53377635]
[1673963149329,9.066,1570.2,1570.1,21.95184943]
[1673963150395,9.066,1570.2,1570.1,20.99807958]
[1673963150605,9.066,1570.2,1570.1,19.82561462]
[1673963150801,9.066,1570.2,1570.1,20.53332886]
[1673963151241,9.066,1570.2,1570.1,19.53332886]
[1673963151488,9.066,1570.2,1570.1,18.82561462]
[1673963152877,9.066,1570.2,1570.1,19.53332886]
[1673963153084,9.066,1570.2,1570.1,18.82561462]
[1673963153450,9.066,1570.2,1570.1,26.80574031]
[1673963153665,9.066,1570.2,1570.1,28.93264079]
[1673963153927,6.53833364,1570.2,1570.1,28.93264079]
[1673963154124,6.53833364,1570.2,1570.1,28.94344902]
[1673963154453,6.53833364,1570.2,1570.1,27.51456771]
[1673963154826,6.53833364,1570.2,1570.1,27.04577901]
[1673963155032,6.53833364,1570.2,1570.1,21.69611828]
[1673963155457,4.16632556,1570.2,1570.1,28.94253516]
[1673963155821,4.10032556,1570.2,1570.1,28.94253516]
[1673963156201,4.10032556,1570.2,1570.1,35.31155516]
[1673963157508,4.10032556,1570.2,1570.1,28.06513828]
[1673963159060,4.10032556,1570.2,1570.1,29.01642438]
[1673963159455,4.10032556,1570.2,1570.1,28.06513828]
[1673963159893,4.10032556,1570.2,1570.1,29.01642505]
[1673963160108,4.10032556,1570.2,1570.1,28.06513828]
[1673963160461,0.25628521,1570.3,1570.2,5.08718016]
[1673963160761,0.16745592,1571.0,1570.3,1.0]
[1673963160913,0.16745592,1571.0,1570.6,25.46716]
[1673963160914,0.10145592,1571.0,1570.6,25.46716]
[1673963161124,0.10145592,1571.0,1570.7,3.0]
[1673963161380,0.10145592,1571.0,1570.9,2.73543703]
[1673963161703,0.10145592,1571.0,1570.9,15.46697703]
[1673963161918,0.10145592,1571.0,1570.9,15.53297703]
[1673963164902,0.10145592,1571.0,1570.9,29.4673711]
[1673963165135,0.09794676,1571.1,1570.9,35.46774118]
[1673963165386,0.10802802,1571.4,1571.0,13.57199415]
[1673963165576,0.10802802,1571.4,1571.2,19.09368]
[1673963165793,0.10802802,1571.4,1571.3,16.18373703]
[1673963166001,0.10802802,1571.4,1571.3,17.70773703]
[1673963171350,0.10802802,1571.4,1571.3,16.24973703]
[1673963171569,0.10802802,1571.4,1571.3,22.61388703]
[1673963181653,0.10802802,1571.4,1571.3,24.06688703]
[1673963181859,0.10802802,1571.4,1571.3,22.61388703]
[1673963182098,0.10802802,1571.4,1571.3,24.07188703]
[1673963184890,0.10802802,1571.4,1571.3,22.61388703]
[1673963185141,0.10802802,1571.4,1571.3,24.05788703]
[1673963185758,0.10802802,1571.4,1571.3,33.23268703]
[1673963187361,8.02e-06,1571.4,1571.3,40.66168118]
[1673963187578,0.1014557,1571.5,1571.4,14.1855]
[1673963187769,0.1014557,1571.5,1571.4,18.9395]
[1673963189737,0.1014557,1571.5,1571.4,23.25187008]
[1673963189950,0.1014557,1571.5,1571.4,19.45235118]
[1673963190416,0.1014557,1571.5,1571.4,18.9395]
[1673963192091,0.1014557,1571.5,1571.4,25.30325]
[1673963193366,0.1014557,1571.5,1571.4,28.41987407]
[1673963193687,0.10802947,1571.6,1571.5,3.36788091]
[1673963193997,0.13271099,1572.1,1572.0,1.50937635]
[1673963194145,0.13271099,1572.1,1572.0,31.75228042]
[1673963194356,0.13271099,1572.1,1572.0,29.15709338]
[1673963194620,0.13271099,1572.1,1572.0,30.47609338]
[1673963195007,0.13271099,1572.1,1572.0,24.11477338]
[1673963196394,0.13271099,1572.1,1572.0,30.47609338]
[1673963199003,0.13271099,1572.1,1572.0,29.30709338]
[1673963199427,0.13271099,1572.1,1572.0,22.94577338]
[1673963200781,0.08271099,1572.1,1572.0,22.94577338]
[1673963203351,0.08271099,1572.1,1572.0,22.60539703]
[1673963206878,1.25171099,1572.1,1572.0,16.24407703]
[1673963207100,1.5341785,1572.1,1572.0,6.88275703]
[1673963207324,1.5341785,1572.1,1572.0,0.52143703]
[1673963207536,7.53705579,1572.1,1571.9,6.42754]
[1673963207701,0.4773,1572.0,1571.9,6.42754]
[1673963207911,0.4773,1572.0,1571.9,12.78926]
[1673963208649,0.4773,1572.0,1571.9,19.15098]
[1673963210395,1.79543172,1572.1,1571.9,19.15098]
[1673963210695,0.8424785,1572.1,1571.9,19.15098]
[1673963210916,1.79543172,1572.1,1571.9,19.15098]
[1673963211381,1.51296421,1572.1,1571.9,19.15098]
[1673963212556,0.56001099,1572.1,1571.9,19.15098]
[1673963213328,0.56001099,1572.1,1572.0,0.45543703]
[1673963213544,0.08271099,1572.1,1572.0,19.53939703]
[1673963213783,0.08271099,1572.1,1572.0,19.60539703]
[1673963217266,1.03566421,1572.1,1572.0,19.60539703]
[1673963218570,0.08271099,1572.1,1572.0,19.60539703]
[1673963219836,0.07913436,1572.1,1572.0,19.60539703]
[1673963221186,1.24813436,1572.1,1572.0,13.24407703]
[1673963221424,1.5302442,1572.1,1572.0,6.88275703]
[1673963222147,0.3612442,1572.1,1572.0,6.88275703]
[1673963222522,0.3612442,1572.1,1572.0,13.24407703]
[1673963223058,0.07913436,1572.1,1572.0,13.24407703]
[1673963223298,1.03208758,1572.1,1572.0,13.24407703]
[1673963223710,0.07913436,1572.1,1572.0,19.60539703]
[1673963223923,0.07913436,1572.1,1572.0,19.14996]
[1673963224768,1.24813436,1572.1,1572.0,19.14996]
[1673963224996,13.84630149,1572.1,1572.0,0.066]
[1673963225211,15.34178269,1572.1,1571.8,3.0]
[1673963225387,15.34178269,1572.1,1571.8,3.45543703]
[1673963225388,5.52051176,1572.0,1571.8,3.45543703]
[1673963225721,7.12018348,1572.0,1571.8,0.45543703]
[1673963226090,4.06851176,1571.9,1571.7,0.066]
[1673963226297,4.06851176,1571.9,1571.6,6.42874]
[1673963227577,4.06851176,1571.9,1571.6,12.79168]
[1673963228673,4.06851176,1571.9,1571.6,19.15462]
[1673963228922,5.11405928,1571.9,1571.6,19.15462]
[1673963229134,5.18005928,1571.9,1571.6,19.15462]
[1673963229310,5.65745928,1571.9,1571.6,19.15462]
[1673963230379,7.08694048,1571.9,1571.6,19.15462]
[1673963230801,5.65745928,1571.9,1571.6,19.15462]
[1673963231217,7.08694048,1571.9,1571.6,19.15462]
[1673963231408,5.65745928,1571.9,1571.6,19.15462]
[1673963232189,7.08694048,1571.9,1571.6,19.15462]
[1673963232394,0.5434,1571.9,1571.7,1.57853361]
[1673963232552,1.42918769,1572.0,1571.8,19.54182703]
[1673963232756,4.54581176,1572.0,1571.8,19.60782703]
[1673963232971,1.42918769,1572.0,1571.8,19.60782703]
[1673963233223,1.50832205,1572.1,1571.8,19.60782703]
[1673963233595,2.46050325,1572.1,1571.8,19.60782703]
[1673963234440,0.95188769,1572.0,1571.8,19.60782703]
[1673963235219,4.06851176,1572.0,1571.8,19.60782703]
[1673963235390,4.06851176,1572.0,1571.8,0.066]
[1673963235391,5.93336294,1571.9,1571.8,0.066]
[1673963235708,5.99936294,1571.9,1571.7,19.15297]
[1673963235916,7.42884414,1571.9,1571.7,19.15297]
[1673963236337,7.42884414,1571.9,1571.7,12.79062]
[1673963236971,0.95188769,1571.8,1571.7,12.79062]
[1673963243363,0.95188769,1571.8,1571.7,12.78747341]
[1673963243935,0.95188769,1571.8,1571.7,19.15000341]
[1673963244583,0.95188769,1571.8,1571.7,6.42827]
[1673963244897,1.88535316,1571.8,1571.7,6.42827]
[1673963245115,3.31483436,1571.8,1571.7,0.066]
[1673963245267,2.36294667,1571.8,1571.6,12.79158]
[1673963245478,0.95265309,1571.7,1571.6,12.79158]
[1673963245825,3.31559976,1571.8,1571.6,12.79158]
[1673963246036,1.88611856,1571.8,1571.6,12.79158]
[1673963246248,0.95265309,1571.8,1571.6,12.79158]
[1673963247323,0.95265309,1571.8,1571.6,19.15452]
[1673963248274,0.95265309,1571.8,1571.6,19.60995703]
[1673963248416,0.95665309,1571.9,1571.7,1.0]
[1673963248787,0.95265309,1571.9,1571.8,19.08639]
[1673963249001,0.95265309,1571.9,1571.8,19.15239]
[1673963249921,0.95245423,1571.9,1571.8,19.15239]
[1673963250308,6.21415304,1571.9,1571.8,0.066]
[1673963250514,6.28015304,1571.9,1571.7,12.79081]
[1673963250766,6.28015304,1571.9,1571.7,19.15317]
[1673963251366,2.92533543,1571.9,1571.7,19.15317]
[1673963251589,0.95245423,1571.9,1571.7,19.15317]
[1673963251794,2.85923543,1572.0,1571.7,19.15317]
[1673963252217,0.95245423,1571.9,1571.7,19.15317]
[1673963252863,2.85923543,1572.0,1571.7,19.15317]
[1673963253087,0.95245423,1572.0,1571.7,19.15317]
[1673963254776,0.95245423,1572.0,1571.9,19.08516]
[1673963254995,0.95245423,1572.0,1571.9,19.15116]
[1673963256017,2.46106979,1572.1,1571.9,19.15116]
[1673963256236,1.03158859,1572.1,1571.9,19.15116]
[1673963256405,0.07913436,1572.1,1571.9,19.15116]
[1673963258757,0.07913436,1572.1,1572.0,1.0]
[1673963258967,0.07913436,1572.1,1572.0,20.08396]
[1673963259210,0.07913436,1572.1,1572.0,19.14996]
[1673963260688,1.03158859,1572.1,1572.0,19.14996]
[1673963260840,0.07913436,1572.1,1572.0,19.14996]
[1673963261524,1.03158859,1572.1,1572.0,19.14996]
[1673963262273,0.07913436,1572.1,1572.0,22.14996]
[1673963262428,0.14271085,1572.2,1572.1,20.03518422]
[1673963262626,0.14271085,1572.2,1572.1,20.10118422]
[1673963270423,0.14271085,1572.2,1572.1,23.10118422]
[1673963275574,0.14271085,1572.2,1572.1,32.70028422]
[1673963278524,0.14271085,1572.2,1572.1,23.10118422]
[1673963283827,4.42833492,1572.2,1572.1,13.74027422]
[1673963283984,5.87633492,1572.2,1572.1,1.01845422]
[1673963284194,6.39763604,1572.2,1572.1,0.95245422]
[1673963285032,8.77957147,1572.2,1572.1,0.95038252]
[1673963285299,8.30441724,1572.2,1572.1,0.95038252]
[1673963285512,9.25542447,1572.2,1572.1,0.95038252]
[1673963285732,15.61593447,1572.2,1572.1,0.95038252]
[1673963286030,9.25542447,1572.2,1572.1,0.95038252]
[1673963286664,7.82594327,1572.2,1572.1,0.95038252]
[1673963288925,9.25542447,1572.2,1572.1,0.95038252]
[1673963289378,7.82594327,1572.2,1572.1,0.95038252]
[1673963289930,0.20871085,1572.2,1572.1,0.95038252]
[1673963290083,0.14271085,1572.2,1572.1,20.03311252]
[1673963290424,0.14271085,1572.2,1572.1,20.09911252]
[1673963291864,0.14271085,1572.2,1572.1,13.73820252]
[1673963292079,1.21555752,1572.2,1572.1,7.37729252]
[1673963292327,4.33218159,1572.2,1572.1,1.01638252]
[1673963292535,5.78318159,1572.2,1572.1,0.95038252]
[1673963292709,5.84918159,1572.2,1572.1,0.95038252]
[1673963292921,7.27866279,1572.2,1572.1,0.95038252]
[1673963293588,8.27866279,1572.2,1572.1,0.95038252]
[1673963294027,6.32765556,1572.2,1572.1,0.95038252]
[1673963295116,8.23346613,1572.2,1572.1,0.95038252]
[1673963295327,9.66354815,1572.2,1572.1,0.95038252]
[1673963295559,10.66354815,1572.2,1572.1,0.95038252]
[1673963295802,17.02405815,1572.2,1572.1,0.95038252]
[1673963296267,16.02405815,1572.2,1572.1,0.95038252]
[1673963296433,9.66354815,1572.2,1572.1,0.95038252]
[1673963296757,10.66354815,1572.2,1572.1,0.95038252]
[1673963297221,8.28128493,1572.2,1572.1,0.95038252]
[1673963298283,23.38456815,1572.2,1572.1,0.95038252]
[1673963298496,21.00230493,1572.2,1572.1,0.95038252]
[1673963298854,20.00230493,1572.2,1572.1,0.95038252]
[1673963301759,5.85017901,1572.2,1572.1,13.67220252]
[1673963301971,4.27733957,1572.2,1572.1,13.73820252]
[1673963302183,4.21133957,1572.2,1572.1,13.73820252]
[1673963302899,5.63938582,1572.2,1572.1,7.37729252]
[1673963303105,5.70538582,1572.2,1572.1,7.37729252]
[1673963303367,6.21138117,1572.2,1572.1,1.01638252]
[1673963303702,6.21138117,1572.2,1572.1,0.95038252]
[1673963303703,14.88288861,1572.2,1572.1,0.95038252]
[1673963307268,16.3106201,1572.2,1572.1,0.95038252]
[1673963307788,14.88288861,1572.2,1571.9,6.42754]
[1673963307994,14.88288861,1572.2,1571.9,0.066]
[1673963307995,6.95418817,1572.1,1571.9,0.066]
[1673963308210,4.06844971,1572.0,1571.9,0.002]
[1673963308528,4.77026853,1572.0,1571.8,6.42795]
[1673963308835,4.77026853,1572.0,1571.8,6.42572794]
[1673963310315,4.77026853,1572.0,1571.8,0.066]
[1673963310316,3.11662407,1571.9,1571.8,0.066]
[1673963310501,6.47376253,1571.9,1571.7,0.066]
[1673963310714,6.47376253,1571.9,1571.7,0.05]
[1673963310715,10.90798162,1571.8,1571.7,0.05]
[1673963310935,5.25922787,1571.8,1571.4,17.9338162]
[1673963311093,3.11662407,1571.7,1571.4,15.62984]
[1673963311309,3.11662407,1571.6,1571.4,0.066]
[1673963311522,17.29478226,1571.8,1571.3,9.51935886]
[1673963311523,3.11662407,1571.5,1571.3,9.51935886]
[1673963311852,3.11662407,1571.4,1571.3,15.88345886]
[1673963312076,3.11662407,1571.4,1571.3,19.76541407]
[1673963312500,0.066,1571.6,1571.3,26.12956407]
[1673963312732,3.11662407,1571.5,1571.3,24.55079414]
[1673963312883,0.066,1571.6,1571.4,7.94249697]
[1673963313089,1.19077625,1571.8,1571.4,12.7935]
[1673963313320,3.11662407,1571.7,1571.4,12.7935]
[1673963313553,3.11662407,1571.7,1571.4,15.09528214]
[1673963313932,3.11662407,1571.7,1571.4,19.15725]
[1673963314832,3.11662407,1571.7,1571.4,21.45952783]
[1673963315824,0.066,1571.8,1571.4,21.45952783]
[1673963316035,9.40632755,1572.0,1571.5,2.03403774]
[1673963316245,3.18262407,1572.0,1571.6,20.66733562]
[1673963316538,3.11662407,1572.0,1571.6,21.4562159]
[1673963316686,0.066,1572.1,1571.7,6.47784418]
[1673963317030,1.0945384,1572.2,1571.8,12.7241]
[1673963317251,4.21116247,1572.2,1571.8,12.7901]